{"text_format":"1","workbook":"xlsx","n_sheets":6,"sheets":["НЗ","ФормаП","Сторона2","Рабочие","Адреса","Архив"],"not_rendered":{"charts":0,"images":0,"macros":1,"external_links":0,"defined_names":4,"comments":0,"pivot_tables":0},"unopened":[],"bounds":{"document_bytes":16777216,"sheet_cells":100000,"rows_first":2000,"rows_last":500,"rows_between":2000,"halvings":0,"cell_chars":16384,"cell_head_chars":4096},"cells_cut":0,"cells_raw":0,"read":"whole","date_system":"1900"}

{"sheet":"НЗ","index":0,"n_rows":13,"n_cols":4,"rows_kept":13,"cut":false,"hidden":false,"merged":[[12,1,12,3],[0,0,0,8],[13,0,13,7],[3,5,3,7],[10,1,10,7],[11,0,11,7],[12,5,12,7],[9,1,9,7],[2,0,2,7],[4,0,4,7],[6,0,6,7],[8,0,8,7],[7,5,7,7],[7,1,7,3],[1,5,1,7]]}
[]
["НАРЯД-ЗАДАНИЕ №",{"$f":"TEXT(B4,\"ММ\")&\"-\"","v":"09-"},null,1]
[]
["Дата:",{"$f":"TODAY()","v":"2024-09-12"},null,{"$f":"B4","v":"2024-09-12"}]
[]
["Состав звена:","Гаврилов В.В.",null,"Беломоина О.А."]
[]
["Адрес:","Надеждинская 17 ***"]
[]
["Задание:","Установить входную дверь"]
[]
[]
["Телефон заявителя:"]

{"sheet":"ФормаП","index":1,"n_rows":29,"n_cols":12,"rows_kept":29,"cut":false,"hidden":false,"merged":[[23,1,23,3],[0,0,0,11],[11,0,11,1],[7,0,7,1],[8,0,8,1],[9,0,9,1],[2,0,2,11],[3,0,3,11],[4,0,4,11],[5,0,5,11],[6,0,6,2],[6,9,6,10],[8,8,8,11],[8,2,8,7],[1,0,1,10],[11,10,11,11],[13,4,13,6],[16,0,16,11],[12,10,12,11],[9,2,9,11],[13,0,13,3],[13,10,13,11],[13,8,13,9],[12,7,12,9],[7,2,7,4],[7,5,7,7],[7,8,7,9],[7,10,7,11],[11,2,11,6],[27,7,27,11],[24,6,28,6],[15,0,15,11],[17,0,17,11],[14,10,14,11],[20,0,23,0],[20,1,20,11],[22,1,22,3],[18,0,18,11],[23,4,23,7],[23,9,23,11],[19,5,19,11],[19,0,19,4],[21,1,21,11],[22,4,22,7],[22,9,22,11],[24,0,28,1],[12,0,12,6],[10,2,10,11],[10,0,10,1],[6,5,6,8],[6,3,6,4],[11,7,11,9],[28,3,28,5],[28,7,28,11],[24,3,24,5],[25,3,25,5],[26,3,26,5],[24,7,24,11],[25,7,25,11],[27,3,27,5],[26,7,26,11]]}
["ОБЩЕСТВО с ОГРАНИЧЕНОЙ ОТВЕТСТВЕННОСТЬЮ ООО\"УК\"ГОРОД\""]
["ОУ ЖЭУ р-н Кайеркан",null,null,null,null,null,null,null,null,null,null,"Форма №"]
["Утверждена приказом"]
["Генерального директора"]
["ООО  \"УК\"ГОРОД\""]
[]
["НАРЯД-ЗАДАНИЕ №",null,null,{"$f":"НЗ!B2 & НЗ!D2","v":"09-1"},null,null,null,null,null,{"$f":"НЗ!B4","v":"2024-09-12"},null,{"$f":"НЗ!D4","v":"2024-09-12"}]
["Состав звена:",null,{"$f":"IF(НЗ!B6=0,\"\",НЗ!B6)","v":"Гаврилов В.В."},null,null,{"$f":"IF(НЗ!D6=0,\"\",НЗ!D6)","v":"Беломоина О.А."},null,null,{"$f":"IF(НЗ!F6=0,\"\",НЗ!F6)","v":""},null,{"$f":"IF(НЗ!H6=0,\"\",НЗ!H6)","v":""}]
["Адрес:",null,{"$f":"IF(НЗ!B8=0,\"\",НЗ!B8)","v":"Надеждинская 17 ***"},null,null,null,null,null,{"$f":"IF(НЗ!F8=0,\"\",НЗ!F8)","v":""}]
["Задание:",null,{"$f":"IF(НЗ!B10=0,\"\",НЗ!B10)","v":"Установить входную дверь"}]
[null,null,{"$f":"IF(НЗ!B11=0,\"\",НЗ!B11)","v":""}]
["Задание выдал:",null,"Мастер ОУ Чернов А.В."]
["(должность ,ФИО)",null,null,null,null,null,null,null,null,null,"(подпись)"]
["Время начала производства работ ",null,null,null,null,null,null,null,"Время на выполнение работ"]
["Описание перечня и объема , фактически выполненного объема работ "]
[]
[]
[]
[]
[{"$f":"НЗ!A13","v":"Телефон заявителя:"},null,null,null,null,{"$f":"IF(НЗ!B13=0,\"\",НЗ!B13)","v":""}]
["Заполняется жильцом","Претензии к качеству выполненной работы не имею, письменного ответа не требую."]
[]
[null,"      Подпись жильца"]
[null,null,null,null,"(подпись)",null,null,null,null,"(ФИО)"]
["Работу выполнили:",null,"1.",{"$f":"IF(НЗ!B6=0,\"\",НЗ!B6)","v":"Гаврилов В.В."}]
[null,null,"2.",{"$f":"IF(НЗ!D6=0,\"\",НЗ!D6)","v":"Беломоина О.А."}]
[null,null,"3.",{"$f":"IF(НЗ!F6=0,\"\",НЗ!F6)","v":""}]
[null,null,"4.",{"$f":"IF(НЗ!H6=0,\"\",НЗ!H6)","v":""}]
[null,null,null,"(ФИО)",null,null,null,"( подпись)"]

{"sheet":"Сторона2","index":2,"n_rows":43,"n_cols":11,"rows_kept":43,"cut":false,"hidden":false,"merged":[[3,8,3,11],[7,0,7,11],[8,4,8,8],[8,9,8,11],[27,4,27,7],[27,8,27,11],[28,0,28,11],[38,2,38,6],[38,8,38,11],[42,8,42,11],[30,0,31,0],[30,1,31,3],[30,4,31,6],[30,7,30,11]]}
[]
["От составления акта о залитии кв. №_______ , дом №________ , по ул."]
["Отказываюсь, претензий по залитию к ООО  \"УК\" ГОРОД\" не имею "]
[null,null,null,null,null,null,null,null,"( Ф.И.О. подпись )"]
["Описание перечня и объема , фактически выполненного объема работ"]
[]
[]
["Используемые материалы :"]
["  № п/п","Наименование материала",null,null,"Диаметр, метраж, количество",null,null,null,null," Примечание"]
[1]
[2]
[3]
[4]
[5]
[6]
[7]
[8]
[9]
[10]
[11]
[12]
[13]
[14]
[15]
[16]
[]
["Материально ответственное лицо : "]
[null,null,null,null,"( подпись)",null,null,null,"( ФИО)"]
["      Учет рабочего времени"]
[]
["№ п/п","           Ф.И.О. работника",null,null,"К-во отработанных часов",null,null,"         Статья расходов"]
[null,null,null,null,null,null,null,17,20,23,16]
[1]
[2]
[3]
[4]
[5]
["Задание принял",null,"Мастер ОУ Чернов А.В."]
[null,null,"(должность, ФИО)",null,null,null,null,null,"(подпись)"]
[]
["От составления акта о залитии кв. №_______ , дом №________ , по ул."]
["Отказываюсь, претензий по залитию к ООО  \"УК\" ГОРОД\" не имею "]
[null,null,null,null,null,null,null,null,"( Ф.И.О. подпись )"]

{"sheet":"Рабочие","index":3,"n_rows":13,"n_cols":2,"rows_kept":13,"cut":false,"hidden":false,"merged":[]}
[]
[null,"РАБОЧИЕ"]
[null,"Безверхний А.Ю."]
[null,"     "]
[null,"Беломоина О.А."]
[null,"Бутусов А.С."]
[null,"Волк Н.Н."]
[null,"Гаврилов В.В."]
[null,"Рамазанов А.Э."]
[null,"Рокин Н.Н."]
[null,"Хусаева В.С."]
[null,"Чомов Е.В."]
[null,"Якубец В.Ю."]

{"sheet":"Адреса","index":4,"n_rows":67,"n_cols":2,"rows_kept":67,"cut":false,"hidden":false,"merged":[]}
[null,"АДРЕСА"]
[null,"Надеждинская 1А"]
[null,"Надеждинская 1В"]
[null,"Надеждинская 1Г"]
[null,"Надеждинская 2Б"]
[null,"Надеждинская 2В"]
[null,"Надеждинская 2Г"]
[null,"Надеждинская 8"]
[null,"Надеждинская 10"]
[null,"Надеждинская 17 ***"]
[null,"Надеждинская 20"]
[null,"Надеждинская 22"]
[null,"Надеждинская 24А"]
[null,"Норильская 4"]
[null,"Норильская 8"]
[null,"Норильская 12"]
[null,"Норильская 20"]
[null,"Первомайская 2"]
[null,"Первомайская 7"]
[null,"Первомайская 8"]
[null,"Первомайская 14"]
[null,"Первомайская 17"]
[null,"Первомайская 19"]
[null,"Первомайская 26"]
[null,"Первомайская 28"]
[null,"Первомайская 38"]
[null,"Первомайская 40"]
[null,"Первомайская 40А"]
[null,"Первомайская 42"]
[null,"Первомайская 46"]
[null,"Первомайская 50"]
[null,"Первомайская 52"]
[null,"Первомайская 56"]
[null,"Победы 9"]
[null,"Победы 15"]
[null,"Строительная 1А"]
[null,"Строительная 1Б"]
[null,"Строительная 1В"]
[null,"Строительная 1Г"]
[null,"Строительная 5"]
[null,"Строительная 8"]
[null,"Строительная 10"]
[null,"Строительная 11"]
[null,"Строительная 12"]
[null,"Строительная 13"]
[null,"Строительная 14"]
[null,"Строительная 16"]
[null,"Строительная 17"]
[null,"Строительная 18"]
[null,"Строительная 20"]
[null,"Строительная 22"]
[null,"Строительная 24"]
[null,"Строительная 26"]
[null,"Шахтерская 4"]
[null,"Шахтерская 6"]
[null,"Шахтерская 11А"]
[null,"Шахтерская 11Б"]
[null,"Шахтерская 11 ***"]
[null,"Шахтерская 22 ***"]
[null,"Шахтерская 24 ***"]
[null,"Школьная 1"]
[null,"Школьная 2"]
[null,"Школьная 3"]
[null,"Школьная 3А"]
[null,"Школьная 6"]
[null,"Школьная 15"]
[null,"Школьная 17"]

{"sheet":"Архив","index":5,"n_rows":2,"n_cols":8,"rows_kept":2,"cut":false,"hidden":false,"merged":[]}
[]
["Дата","№ Н.З.","Адрес","Задание","Рабочий 1","Рабочий 1","Рабочий 1","Рабочий 1"]